fUSD/lending_fUSD_20260517
["ID","MTS","AMOUNT","RATE_DAILY","PERIOD"]
[422457624,1778967052000,-200.0,0.00032055,2]
[422457619,1778967052000,-526.4894096,0.0003205,7]
[422457627,1778967052000,-886.0,0.00032133,30]
[422457626,1778967052000,-482.48502227,0.00032113,7]
[422457625,1778967052000,-225.18697532,0.00032107,2]
[422457628,1778967052000,-274.0,0.00032133,30]
[422457631,1778967052000,-418.0,0.00032135,30]
[422457642,1778967052000,-1272.0,0.0003224,2]
[422457623,1778967052000,-371.59053031,0.0003205,7]
[422457633,1778967052000,-151.0,0.00032135,7]
[422457638,1778967052000,-212.0,0.00032167,30]
[422457648,1778967052000,-25305.13790112,0.00032369,6]
[422457635,1778967052000,-151.0,0.00032166,30]
[422457637,1778967052000,-740.0,0.00032167,30]
[422457634,1778967052000,-206.0,0.00032166,30]
[422457636,1778967052000,-577.0,0.00032166,30]
[422457640,1778967052000,-206.205718,0.000322,6]
[422457639,1778967052000,-213.0,0.00032167,30]
[422457632,1778967052000,-151.0,0.00032135,7]
[422457644,1778967052000,-1350.52884405,0.00032248,4]
[422457645,1778967052000,-1198.05,0.000323,7]
[422457646,1778967052000,-2830.86843543,0.00032307,2]
[422457588,1778967052000,-352.19062219,0.00032047,7]
[422457641,1778967052000,-851.9,0.0003221,5]
[422457622,1778967052000,-476.4546898,0.0003205,7]
[422457647,1778967052000,-2476.0,0.00032307,2]
[422457612,1778967052000,-339.61857189,0.0003205,7]
[422457611,1778967052000,-158.43826638,0.0003205,7]
[422457590,1778967052000,-263.90649912,0.00032047,2]
[422457583,1778967052000,-180.70414806,0.00032047,7]
[422457582,1778967052000,-578.19433132,0.00032047,7]
[422457584,1778967052000,-170.33166223,0.00032047,7]
[422457593,1778967052000,-204.45489781,0.00032047,7]
[422457604,1778967052000,-232.65099278,0.0003205,2]
[422457603,1778967052000,-182.01166614,0.0003205,7]
[422457594,1778967052000,-222.03387672,0.00032047,7]
[422457592,1778967052000,-249.34276348,0.00032047,7]
[422457595,1778967052000,-334.33741163,0.00032047,7]
[422457598,1778967052000,-606.46009524,0.00032047,7]
[422457600,1778967052000,-253.09871637,0.0003205,7]
[422457597,1778967052000,-601.00896941,0.00032047,2]
[422457591,1778967052000,-412.27096369,0.00032047,7]
[422457596,1778967052000,-415.13710991,0.00032047,7]
[422457613,1778967052000,-477.35122024,0.0003205,7]
[422457614,1778967052000,-707.99249181,0.0003205,7]
[422457616,1778967052000,-229.15800551,0.0003205,7]
[422457617,1778967052000,-440.55108259,0.0003205,7]
[422457602,1778967052000,-496.36294136,0.0003205,7]
[422457606,1778967052000,-214.76054842,0.0003205,7]
[422457615,1778967052000,-196.41253023,0.0003205,7]
[422457610,1778967052000,-157.44591693,0.0003205,7]
[422457608,1778967052000,-192.60373668,0.0003205,7]
[422457607,1778967052000,-333.91511921,0.0003205,7]
[422457605,1778967052000,-699.5320023,0.0003205,7]
[422457601,1778967052000,-152.59631586,0.0003205,7]
[422457599,1778967052000,-303.98551273,0.0003205,7]
[422457609,1778967052000,-329.37398885,0.0003205,7]
[422457691,1778967053000,-300.97553011,0.00033203,2]
[422457693,1778967053000,-546.0,0.00033545,9]
[422457690,1778967053000,-213.0,0.00033167,30]
[422457687,1778967053000,-577.0,0.00033166,30]
[422457686,1778967053000,-151.0,0.00033166,30]
[422457678,1778967053000,-8321.47,0.000331,14]
[422457683,1778967053000,-155.0,0.00033135,30]
[422457684,1778967053000,-418.0,0.00033135,30]
[422457689,1778967053000,-212.0,0.00033167,30]
[422457688,1778967053000,-740.0,0.00033167,30]
[422457682,1778967053000,-153.0,0.00033133,30]
[422457685,1778967053000,-206.0,0.00033166,30]
[422457692,1778967053000,-2312.0,0.000334,11]
[422457703,1778967053000,-500.0,0.00033557,2]
[422457700,1778967053000,-500.0,0.00033557,2]
[422457698,1778967053000,-500.0,0.00033557,2]
[422457697,1778967053000,-500.0,0.00033557,2]
[422457695,1778967053000,-500.0,0.00033557,2]
[422457702,1778967053000,-500.0,0.00033557,2]
[422457694,1778967053000,-500.0,0.00033557,2]
[422457699,1778967053000,-500.0,0.00033557,2]
[422457696,1778967053000,-500.0,0.00033557,2]
[422457705,1778967053000,-500.0,0.00033557,2]
[422457717,1778967053000,-500.0,0.00033557,2]
[422457715,1778967053000,-500.0,0.00033557,2]
[422457716,1778967053000,-500.0,0.00033557,2]
[422457677,1778967053000,-404.07,0.000331,30]
[422457701,1778967053000,-500.0,0.00033557,2]
[422457674,1778967053000,-571.588399,0.00033,14]
[422457663,1778967053000,-679.41,0.00032877,2]
[422457673,1778967053000,-1486.69,0.00032939,30]
[422457708,1778967053000,-500.0,0.00033557,2]
[422457653,1778967053000,-1270.0,0.00032637,2]
[422457656,1778967053000,-625.0,0.00032637,2]
[422457651,1778967053000,-150.0,0.00032562,2]
[422457649,1778967053000,-1768.0,0.00032369,2]
[422457650,1778967053000,-546.0,0.00032477,7]
[422457652,1778967053000,-150.0,0.00032637,2]
[422457655,1778967053000,-1354.0,0.00032637,2]
[422457654,1778967053000,-1223.0,0.00032637,2]
[422457659,1778967053000,-874.41500288,0.00032654,7]
[422457657,1778967053000,-751.26121176,0.00032651,2]
[422457660,1778967053000,-233.51889341,0.00032655,2]
[422457666,1778967053000,-448.43651,0.00032877,7]
[422457679,1778967053000,-2048.0,0.000331,7]
[422457658,1778967053000,-758.07511905,0.00032651,7]
[422457661,1778967053000,-1174.53,0.000327,7]
[422457662,1778967053000,-262.18,0.00032715,120]
[422457665,1778967053000,-448.43651,0.00032877,7]
[422457667,1778967053000,-448.43651,0.00032877,7]
[422457664,1778967053000,-448.43651,0.00032877,7]
[422457670,1778967053000,-448.43651,0.00032877,7]
[422457680,1778967053000,-886.0,0.00033133,30]
[422457669,1778967053000,-448.43651,0.00032877,7]
[422457671,1778967053000,-448.43651,0.00032877,7]
[422457675,1778967053000,-546.0,0.00033011,8]
[422457672,1778967053000,-2842.7345648,0.00032877,30]
[422457681,1778967053000,-274.0,0.00033133,30]
[422457676,1778967053000,-350.0,0.00033014,5]
[422457668,1778967053000,-448.43651,0.00032877,7]
[422457706,1778967053000,-500.0,0.00033557,2]
[422457704,1778967053000,-500.0,0.00033557,2]
[422457709,1778967053000,-500.0,0.00033557,2]
[422457746,1778967053000,-206.0,0.00034166,30]
[422457747,1778967053000,-151.0,0.00034166,30]
[422457748,1778967053000,-577.0,0.00034166,30]
[422457745,1778967053000,-1000.0,0.00034161,30]
[422457756,1778967053000,-8321.47,0.000342,14]
[422457755,1778967053000,-404.07,0.000342,30]
[422457750,1778967053000,-212.0,0.00034167,30]
[422457753,1778967053000,-851.9,0.00034182,7]
[422457751,1778967053000,-213.0,0.00034167,30]
[422457752,1778967053000,-1000.0,0.00034177,30]
[422457754,1778967053000,-150.0,0.0003419,2]
[422457768,1778967053000,-603.78610069,0.00034286,30]
[422457758,1778967053000,-180.0,0.00034238,3]
[422457749,1778967053000,-740.0,0.00034167,30]
[422457757,1778967053000,-200.0,0.000342,9]
[422457760,1778967053000,-2312.0,0.00034239,11]
[422457769,1778967053000,-500.0,0.00034313,60]
[422457759,1778967053000,-220.0,0.00034238,3]
[422457761,1778967053000,-102348.3681903,0.00034247,2]
[422457762,1778967053000,-3350.40456481,0.00034247,30]
[422457765,1778967053000,-396.3139832,0.00034283,3]
[422457766,1778967053000,-200.0,0.00034283,3]
[422457764,1778967053000,-349.0784958,0.00034283,3]
[422457767,1778967053000,-300.0,0.00034283,3]
[422457771,1778967053000,-500.0,0.00034313,60]
[422457772,1778967053000,-500.0,0.00034313,60]
[422457773,1778967053000,-500.0,0.00034313,60]
[422457710,1778967053000,-500.0,0.00033557,2]
[422457763,1778967053000,-1000.0,0.00034258,30]
[422457744,1778967053000,-418.0,0.00034135,30]
[422457770,1778967053000,-500.0,0.00034313,60]
[422457739,1778967053000,-2082.01435369,0.00034125,4]
[422457711,1778967053000,-500.0,0.00033557,2]
[422457737,1778967053000,-1000.0,0.00034004,30]
[422457714,1778967053000,-500.0,0.00033557,2]
[422457713,1778967053000,-500.0,0.00033557,2]
[422457712,1778967053000,-500.0,0.00033557,2]
[422457707,1778967053000,-500.0,0.00033557,2]
[422457718,1778967053000,-500.0,0.00033557,2]
[422457722,1778967053000,-500.0,0.00033557,2]
[422457720,1778967053000,-500.0,0.00033557,2]
[422457729,1778967053000,-961.68980138,0.00033605,7]
[422457723,1778967053000,-500.0,0.00033557,2]
[422457719,1778967053000,-500.0,0.00033557,2]
[422457724,1778967053000,-757.0,0.00033557,2]
[422457721,1778967053000,-500.0,0.00033557,2]
[422457728,1778967053000,-1198.05,0.000336,30]
[422457725,1778967053000,-901.51345411,0.00033557,2]
[422457726,1778967053000,-909.69014286,0.00033557,7]
[422457740,1778967053000,-886.0,0.00034133,30]
[422457738,1778967053000,-546.0,0.00034079,9]
[422457733,1778967053000,-2000.0,0.000339,7]
[422457743,1778967053000,-155.0,0.00034135,30]
[422457734,1778967053000,-230.66891351,0.00033931,7]
[422457742,1778967053000,-153.0,0.00034133,30]
[422457736,1778967053000,-208.44072055,0.00034,120]
[422457735,1778967053000,-350.0,0.00033973,5]
[422457741,1778967053000,-274.0,0.00034133,30]
[422457732,1778967053000,-500.0,0.00033877,120]
[422457730,1778967053000,-1061.98873772,0.00033626,7]
[422457727,1778967053000,-1049.29800345,0.0003356,7]
[422457731,1778967053000,-161.0,0.00033691,3]
[422457820,1778967054000,-374.778137,0.00034503,7]
[422457815,1778967054000,-1198.758275,0.00034503,7]
[422457819,1778967054000,-1198.758275,0.00034503,7]
[422457816,1778967054000,-151.0,0.00034503,7]
[422457813,1778967054000,-2123.786567,0.00034503,7]
[422457818,1778967054000,-1198.758275,0.00034503,7]
[422457811,1778967054000,-2123.786567,0.00034503,7]
[422457821,1778967054000,-374.778137,0.00034503,7]
[422457823,1778967054000,-374.778137,0.00034503,7]
[422457812,1778967054000,-2123.786567,0.00034503,7]
[422457809,1778967054000,-151.0,0.00034503,7]
[422457822,1778967054000,-374.778137,0.00034503,7]
[422457817,1778967054000,-1198.758275,0.00034503,7]
[422457814,1778967054000,-2123.786567,0.00034503,7]
[422457829,1778967054000,-305.660067,0.00034503,7]
[422457839,1778967054000,-463.691199,0.00034503,7]
[422457828,1778967054000,-463.691199,0.00034503,7]
[422457826,1778967054000,-305.660067,0.00034503,7]
[422457827,1778967054000,-305.660067,0.00034503,7]
[422457835,1778967054000,-151.0,0.00034503,3]
[422457836,1778967054000,-151.0,0.00034503,3]
[422457834,1778967054000,-151.0,0.00034503,3]
[422457837,1778967054000,-151.0,0.00034503,3]
[422457838,1778967054000,-152.244038,0.00034503,3]
[422457831,1778967054000,-151.0,0.00034503,3]
[422457832,1778967054000,-151.0,0.00034503,3]
[422457830,1778967054000,-463.691199,0.00034503,7]
[422457825,1778967054000,-305.660067,0.00034503,7]
[422457849,1778967054000,-184.204153,0.00034503,7]
[422457807,1778967054000,-151.0,0.00034503,7]
[422457824,1778967054000,-151.0,0.00034503,7]
[422457804,1778967054000,-151.0,0.00034503,7]
[422457774,1778967054000,-500.0,0.00034313,60]
[422457805,1778967054000,-151.0,0.00034503,7]
[422457778,1778967054000,-500.0,0.00034313,60]
[422457781,1778967054000,-500.0,0.00034313,60]
[422457779,1778967054000,-500.0,0.00034313,60]
[422457780,1778967054000,-500.0,0.00034313,60]
[422457783,1778967054000,-532.0691179,0.00034313,60]
[422457775,1778967054000,-500.0,0.00034313,60]
[422457776,1778967054000,-500.0,0.00034313,60]
[422457777,1778967054000,-500.0,0.00034313,60]
[422457782,1778967054000,-500.0,0.00034313,60]
[422457785,1778967054000,-3075.274003,0.00034483,2]
[422457796,1778967054000,-151.0,0.00034503,7]
[422457795,1778967054000,-151.0,0.00034503,7]
[422457784,1778967054000,-1000.0,0.00034448,30]
[422457787,1778967054000,-7561.1073649,0.00034492,2]
[422457786,1778967054000,-1582.625274,0.00034483,2]
[422457788,1778967054000,-7561.1073649,0.00034492,2]
[422457793,1778967054000,-151.0,0.00034503,7]
[422457810,1778967054000,-155.312686,0.00034503,7]
[422457800,1778967054000,-284.289204,0.00034503,7]
[422457808,1778967054000,-151.0,0.00034503,7]
[422457803,1778967054000,-151.0,0.00034503,7]
[422457799,1778967054000,-284.289204,0.00034503,7]
[422457806,1778967054000,-151.0,0.00034503,7]
[422457798,1778967054000,-284.289204,0.00034503,7]
[422457801,1778967054000,-284.289204,0.00034503,7]
[422457797,1778967054000,-151.0,0.00034503,7]
[422457794,1778967054000,-151.0,0.00034503,7]
[422457792,1778967054000,-151.0,0.00034503,7]
[422457790,1778967054000,-257683.5838111,0.00034503,2]
[422457789,1778967054000,-5000.0,0.000345,14]
[422457791,1778967054000,-144207.8774615,0.00034503,2]
[422457802,1778967054000,-151.0,0.00034503,7]
[422457851,1778967054000,-184.204153,0.00034503,7]
[422457833,1778967054000,-463.691199,0.00034503,7]
[422457840,1778967054000,-279.30719,0.00034503,7]
[422457879,1778967054000,-199.293253,0.00034513,7]
[422457880,1778967054000,-199.293253,0.00034513,7]
[422457881,1778967054000,-387658.9096043,0.00034513,2]
[422457882,1778967054000,-178.88433148,0.00034543,2]
[422457883,1778967054000,-546.0,0.00034613,10]
[422457890,1778967054000,-1061.30516667,0.00034916,7]
[422457889,1778967054000,-1051.76569646,0.00034916,2]
[422457892,1778967054000,-1121.97143494,0.00034966,7]
[422457891,1778967054000,-350.0,0.00034931,5]
[422457886,1778967054000,-1486.69,0.00034788,60]
[422457888,1778967054000,-500.0,0.000349,12]
[422457884,1778967054000,-1198.05,0.000347,30]
[422457885,1778967054000,-2000.0,0.000347,7]
[422457887,1778967054000,-1500.0,0.00034795,2]
[422457904,1778967054000,-886.0,0.00035133,30]
[422457894,1778967054000,-1950.2891859,0.00035,2]
[422457905,1778967054000,-274.0,0.00035133,30]
[422457850,1778967054000,-184.204153,0.00034503,7]
[422457908,1778967054000,-418.0,0.00035135,30]
[422457909,1778967054000,-350.0,0.00035139,2]
[422457907,1778967054000,-155.0,0.00035135,30]
[422457901,1778967054000,-215.03962261,0.00035,30]
[422457899,1778967054000,-195.921761,0.00035,7]
[422457878,1778967054000,-199.293253,0.00034513,7]
[422457902,1778967054000,-404.07,0.000351,30]
[422457897,1778967054000,-1000.0,0.00035,90]
[422457893,1778967054000,-172081.98636019,0.00035,4]
[422457906,1778967054000,-153.0,0.00035133,30]
[422457898,1778967054000,-76437.47559614,0.00035,2]
[422457895,1778967054000,-2193.80924166,0.00035,7]
[422457896,1778967054000,-540.27708256,0.00035,30]
[422457900,1778967054000,-151.0,0.00035,7]
[422457868,1778967054000,-300.0,0.00034513,5]
[422457903,1778967054000,-8321.47,0.000351,14]
[422457873,1778967054000,-151.0,0.00034513,7]
[422457867,1778967054000,-300.0,0.00034513,5]
[422457848,1778967054000,-528.657617,0.00034503,7]
[422457841,1778967054000,-279.30719,0.00034503,7]
[422457842,1778967054000,-279.30719,0.00034503,7]
[422457844,1778967054000,-528.657617,0.00034503,7]
[422457846,1778967054000,-528.657617,0.00034503,7]
[422457843,1778967054000,-279.30719,0.00034503,7]
[422457845,1778967054000,-528.657617,0.00034503,7]
[422457853,1778967054000,-1850.140719,0.00034503,7]
[422457852,1778967054000,-1850.140719,0.00034503,7]
[422457855,1778967054000,-1850.140719,0.00034503,7]
[422457856,1778967054000,-448.43651,0.00034503,7]
[422457857,1778967054000,-448.43651,0.00034503,7]
[422457863,1778967054000,-151.0,0.00034503,7]
[422457864,1778967054000,-151.0,0.00034503,7]
[422457847,1778967054000,-184.204153,0.00034503,7]
[422457859,1778967054000,-448.43651,0.00034503,7]
[422457854,1778967054000,-448.43651,0.00034503,7]
[422457871,1778967054000,-151.0,0.00034513,7]
[422457875,1778967054000,-151.0,0.00034513,7]
[422457874,1778967054000,-151.0,0.00034513,7]
[422457870,1778967054000,-300.0,0.00034513,5]
[422457865,1778967054000,-152.939565,0.00034513,7]
[422457869,1778967054000,-300.0,0.00034513,5]
[422457877,1778967054000,-199.293253,0.00034513,7]
[422457860,1778967054000,-151.0,0.00034503,7]
[422457876,1778967054000,-151.0,0.00034513,7]
[422457858,1778967054000,-1850.140719,0.00034503,7]
[422457861,1778967054000,-151.0,0.00034503,7]
[422457872,1778967054000,-151.0,0.00034513,7]
[422457862,1778967054000,-151.0,0.00034503,7]
[422457866,1778967054000,-300.0,0.00034513,5]
[422457946,1778967055000,-151.0,0.00035653,7]
[422457948,1778967055000,-151.0,0.00035653,7]
[422457937,1778967055000,-164.63041949,0.00035616,2]
[422457940,1778967055000,-1223.0,0.00035637,2]
[422457943,1778967055000,-350.0,0.0003565,2]
[422457941,1778967055000,-1354.0,0.00035637,2]
[422457942,1778967055000,-625.0,0.00035637,2]
[422457945,1778967055000,-151.0,0.00035653,7]
[422457950,1778967055000,-151.933482,0.00035653,7]
[422457949,1778967055000,-253.527364,0.00035653,7]
[422457958,1778967055000,-151.0,0.00035653,7]
[422457944,1778967055000,-151.0,0.00035653,7]
[422457955,1778967055000,-229.908155,0.00035653,7]
[422457960,1778967055000,-2123.786567,0.00035653,7]
[422457961,1778967055000,-2123.786567,0.00035653,7]
[422457951,1778967055000,-284.289204,0.00035653,7]
[422457952,1778967055000,-284.289204,0.00035653,7]
[422457956,1778967055000,-261.1828,0.00035653,7]
[422457953,1778967055000,-284.289204,0.00035653,7]
[422457957,1778967055000,-151.0,0.00035653,7]
[422457954,1778967055000,-284.289204,0.00035653,7]
[422457962,1778967055000,-2123.786567,0.00035653,7]
[422457967,1778967055000,-1198.758275,0.00035653,7]
[422457936,1778967055000,-679.41,0.00035616,2]
[422457974,1778967055000,-1000.0,0.00035738,60]
[422457959,1778967055000,-151.0,0.00035653,7]
[422457947,1778967055000,-151.0,0.00035653,7]
[422457922,1778967055000,-29444.2010506,0.00035268,2]
[422457938,1778967055000,-150.0,0.00035637,2]
[422457973,1778967055000,-1198.05,0.000357,30]
[422457912,1778967055000,-151.0,0.00035166,30]
[422457911,1778967055000,-206.0,0.00035166,30]
[422457910,1778967055000,-546.0,0.00035147,10]
[422457918,1778967055000,-5561.18796262,0.00035209,2]
[422457919,1778967055000,-1000.0,0.00035254,30]
[422457920,1778967055000,-1000.0,0.00035256,30]
[422457915,1778967055000,-212.0,0.00035167,30]
[422457913,1778967055000,-577.0,0.00035166,30]
[422457917,1778967055000,-1500.0,0.000352,7]
[422457916,1778967055000,-213.0,0.00035167,30]
[422457914,1778967055000,-740.0,0.00035167,30]
[422457939,1778967055000,-1270.0,0.00035637,2]
[422457932,1778967055000,-3858.05211754,0.00035616,30]
[422457934,1778967055000,-151.0,0.00035616,7]
[422457928,1778967055000,-8466.0,0.00035589,2]
[422457924,1778967055000,-1000.0,0.0003532,30]
[422457921,1778967055000,-424.6470239,0.00035268,2]
[422457926,1778967055000,-350.0,0.00035484,2]
[422457925,1778967055000,-391.71765849,0.00035397,2]
[422457923,1778967055000,-162.06610683,0.00035315,120]
[422457929,1778967055000,-170786.81018297,0.0003561,2]
[422457931,1778967055000,-461.8949938,0.00035616,60]
[422457930,1778967055000,-4509.00530693,0.0003561,2]
[422457927,1778967055000,-1580.0,0.00035497,11]
[422457935,1778967055000,-151.0,0.00035616,7]
[422457933,1778967055000,-151.0,0.00035616,7]
[422457975,1778967055000,-1000.0,0.0003577,60]
[422457966,1778967055000,-1198.758275,0.00035653,7]
[422458011,1778967055000,-151.0,0.0003594,7]
[422457999,1778967055000,-1850.140719,0.00035906,7]
[422458000,1778967055000,-1850.140719,0.00035906,7]
[422458001,1778967055000,-1850.140719,0.00035906,7]
[422458002,1778967055000,-151.0,0.00035906,7]
[422458005,1778967055000,-1488.07857,0.0003594,72]
[422458004,1778967055000,-151.0,0.00035906,7]
[422458006,1778967055000,-1488.07857,0.0003594,72]
[422458007,1778967055000,-374.778137,0.0003594,7]
[422458008,1778967055000,-374.778137,0.0003594,7]
[422458009,1778967055000,-374.778137,0.0003594,7]
[422458010,1778967055000,-374.778137,0.0003594,7]
[422458013,1778967055000,-900.0,0.00035986,13]
[422458012,1778967055000,-900.0,0.00035986,13]
[422458023,1778967055000,-800.0,0.00035986,13]
[422458015,1778967055000,-900.0,0.00035986,13]
[422458014,1778967055000,-900.0,0.00035986,13]
[422458016,1778967055000,-900.0,0.00035986,13]
[422458019,1778967055000,-900.0,0.00035986,13]
[422458020,1778967055000,-800.0,0.00035986,13]
[422458021,1778967055000,-800.0,0.00035986,13]
[422458018,1778967055000,-900.0,0.00035986,13]
[422458017,1778967055000,-900.0,0.00035986,13]
[422458022,1778967055000,-800.0,0.00035986,13]
[422458024,1778967055000,-800.0,0.00035986,13]
[422457965,1778967055000,-157.278708,0.00035653,7]
[422457996,1778967055000,-184.204153,0.00035906,7]
[422457993,1778967055000,-184.204153,0.00035906,7]
[422458003,1778967055000,-151.0,0.00035906,7]
[422457997,1778967055000,-184.204153,0.00035906,7]
[422457963,1778967055000,-2123.786567,0.00035653,7]
[422457968,1778967055000,-1198.758275,0.00035653,7]
[422457969,1778967055000,-15840.16,0.00035653,100]
[422457970,1778967055000,-546.0,0.00035681,11]
[422457971,1778967055000,-169.17,0.00035692,3]
[422457964,1778967055000,-1198.758275,0.00035653,7]
[422457972,1778967055000,-169.17,0.00035692,3]
[422457976,1778967055000,-1000.0,0.0003585,60]
[422457995,1778967055000,-184.204153,0.00035906,7]
[422457984,1778967055000,-463.691199,0.00035906,7]
[422457978,1778967055000,-305.660067,0.00035906,7]
[422457980,1778967055000,-305.660067,0.00035906,7]
[422457977,1778967055000,-150.0,0.00035899,2]
[422457989,1778967055000,-279.30719,0.00035906,7]
[422457981,1778967055000,-463.691199,0.00035906,7]
[422457985,1778967055000,-463.691199,0.00035906,7]
[422457998,1778967055000,-1850.140719,0.00035906,7]
[422457994,1778967055000,-528.657617,0.00035906,7]
[422457992,1778967055000,-528.657617,0.00035906,7]
[422457991,1778967055000,-528.657617,0.00035906,7]
[422457988,1778967055000,-279.30719,0.00035906,7]
[422457990,1778967055000,-528.657617,0.00035906,7]
[422457982,1778967055000,-305.660067,0.00035906,7]
[422457983,1778967055000,-463.691199,0.00035906,7]
[422457979,1778967055000,-305.660067,0.00035906,7]
[422457987,1778967055000,-279.30719,0.00035906,7]
[422457986,1778967055000,-279.30719,0.00035906,7]
[422458067,1778967056000,-151.0,0.000362,7]
[422458066,1778967056000,-151.0,0.000362,7]
[422458068,1778967056000,-151.0,0.000362,7]
[422458065,1778967056000,-212.94,0.000362,2]
[422458069,1778967056000,-200.0,0.000362,10]
[422458064,1778967056000,-245.7,0.000362,2]
[422458058,1778967056000,-213.0,0.00036167,30]
[422458073,1778967056000,-350.0,0.00036212,2]
[422458063,1778967056000,-500.61920959,0.00036197,30]
[422458055,1778967056000,-577.0,0.00036166,30]
[422458059,1778967056000,-288.0,0.00036192,30]
[422458070,1778967056000,-194.168,0.000362,34]
[422458062,1778967056000,-1000.0,0.00036196,60]
[422458072,1778967056000,-200.0,0.000362,12]
[422458088,1778967056000,-1540.0,0.00036298,7]
[422458076,1778967056000,-151.0,0.00036265,7]
[422458078,1778967056000,-151.0,0.00036265,7]
[422458080,1778967056000,-151.0,0.00036265,7]
[422458079,1778967056000,-151.0,0.00036265,7]
[422458077,1778967056000,-151.0,0.00036265,7]
[422458074,1778967056000,-546.0,0.00036214,11]
[422458075,1778967056000,-199.938051,0.00036265,7]
[422458082,1778967056000,-150.0,0.00036298,2]
[422458086,1778967056000,-150.0,0.00036298,2]
[422458081,1778967056000,-151.0,0.00036265,7]
[422458085,1778967056000,-17297.33122518,0.00036298,2]
[422458084,1778967056000,-150.0,0.00036298,2]
[422458083,1778967056000,-3312.41775212,0.00036298,2]
[422458057,1778967056000,-212.0,0.00036167,30]
[422458071,1778967056000,-194.168,0.000362,34]
[422458060,1778967056000,-151.0,0.00036195,14]
[422458034,1778967056000,-448.43651,0.00036,7]
[422458054,1778967056000,-151.0,0.00036166,30]
[422458026,1778967056000,-800.0,0.00035986,13]
[422458028,1778967056000,-25074.59174953,0.00036,2]
[422458025,1778967056000,-800.0,0.00035986,13]
[422458033,1778967056000,-448.43651,0.00036,7]
[422458031,1778967056000,-8321.47,0.00036,14]
[422458035,1778967056000,-448.43651,0.00036,7]
[422458029,1778967056000,-12422.14074617,0.00036,2]
[422458027,1778967056000,-800.0,0.00035986,13]
[422458036,1778967056000,-151.0,0.00036,7]
[422458032,1778967056000,-448.43651,0.00036,7]
[422458030,1778967056000,-404.07,0.00036,30]
[422458038,1778967056000,-350.0,0.0003601,2]
[422458048,1778967056000,-274.0,0.00036133,30]
[422458037,1778967056000,-151.0,0.00036,7]
[422458040,1778967056000,-2312.0,0.00036017,11]
[422458045,1778967056000,-1000.0,0.00036062,60]
[422458039,1778967056000,-1000.0,0.00036016,60]
[422458043,1778967056000,-1000.0,0.00036048,2]
[422458046,1778967056000,-999.29351013,0.00036122,2]
[422458047,1778967056000,-886.0,0.00036133,30]
[422458044,1778967056000,-1000.0,0.00036058,60]
[422458042,1778967056000,-1000.0,0.00036048,2]
[422458041,1778967056000,-1000.0,0.00036048,2]
[422458049,1778967056000,-153.0,0.00036133,30]
[422458052,1778967056000,-851.9,0.00036153,30]
[422458051,1778967056000,-418.0,0.00036135,30]
[422458053,1778967056000,-206.0,0.00036166,30]
[422458061,1778967056000,-151.0,0.00036195,14]
[422458056,1778967056000,-740.0,0.00036167,30]
[422458050,1778967056000,-155.0,0.00036135,30]
[422458098,1778967056000,-151.0,0.00036298,7]
[422458153,1778967056000,-452.04263183,0.00036318,2]
[422458090,1778967056000,-1540.0,0.00036298,7]
[422458122,1778967056000,-1000.0,0.00036298,2]